[Event "29th CRO-chT Junior 2020"]
[Site "Cakovec"]
[Date "2020.07.14"]
[Round "2.7"]
[White "Vuk, Sebastijan"]
[Black "Baric, Marko"]
[Result "1/2-1/2"]
[ECO "B31"]
[WhiteElo "1382"]
[BlackElo "1831"]
[Annotator "NA RC"]
[PlyCount "27"]
[EventDate "2020.07.14"]
[EventType "team-tourn"]
[EventCountry "CRO"]
[SourceTitle "playchess.com"]
[Source "ChessBase"]
[SourceQuality "1"]
[TimeControl "5400+30"]

{[%evp 8,25,29,33,18,19,37,8,38,-4,47,43,68,62,87,65,85,66,49,49]} 1. e4 {[%emt 0:00:30]} c5 {[%emt 0:00:30]} 2. Nf3 {[%emt 0:00:00]} Nc6 {[%emt 0:00:00]} 3. Bb5 {[%emt 0:00:00]} g6 {[%emt 0:00:00]} 4. Nc3 {[%emt 0:00:30]} Nd4 {[%emt 0:02:30]} 5. Nxd4 {[%emt 0:03:30]} cxd4 {[%emt 0:00:30]} 6. Ne2 {[%emt 0:00:30]} Bg7 {[%emt 0:05:30]} 7. O-O {[%emt 0:00:30]} a6 {[%emt 0:05:30]} 8. Bc4 {[%emt 0:02:30]} Qc7 {[%emt 0:03:30]} 9. d3 {[%emt 0:04:30]} b5 {[%emt 0:04:30]} 10. Bb3 {[%emt 0:01:30]} Bb7 {[%emt 0:04:30]} 11. f4 {[%emt 0:03:30]} e6 {[%emt 0:09:30]} 12. Qe1 {[%emt 0:14:30]} Ne7 $14 {[%emt 0:06:30]} 13. Qf2 {[%emt 0:03:30]} Nc6 {[%emt 0:12:30]} 14. e5 {[%emt 0:05:30]} 1/2-1/2

[Event "29th CRO-chT Junior 2020"]
[Site "Cakovec"]
[Date "2020.07.14"]
[Round "2.8"]
[White "Cecic-Sule, Dino"]
[Black "Kristofic, Dino"]
[Result "1-0"]
[ECO "D02"]
[WhiteElo "1695"]
[BlackElo "1290"]
[Annotator "NA RC"]
[PlyCount "67"]
[EventDate "2020.07.14"]
[EventType "team-tourn"]
[EventCountry "CRO"]
[SourceTitle "playchess.com"]
[Source "ChessBase"]
[SourceQuality "1"]
[TimeControl "5400+30"]

1. d4 {[%emt 0:00:30]} d5 {[%emt 0:00:30]} 2. Nf3 {[%emt 0:00:30]} Bf5 {[%emt 0:00:30]} 3. Bf4 {[%emt 0:00:00]} Nf6 {[%emt 0:01:30]} 4. e3 {[%emt 0:00:00]} Nbd7 {[%emt 0:02:30]} 5. Bd3 {[%emt 0:00:30]} Be4 {[%emt 0:01:30]} 6. Nbd2 {[%emt 0:01:30]} e6 {[%emt 0:01:30]} 7. Bxe4 {[%emt 0:00:30]} Nxe4 {[%emt 0:02:30]} 8. Nxe4 {[%emt 0:00:30]} dxe4 {[%emt 0:00:00]} 9. Nd2 {[%emt 0:00:30]} f5 {[%emt 0:01:00]} 10. c3 {[%emt 0:00:30]} Rc8 {[%emt 0:02:30]} 11. Qb3 {[%emt 0:00:30]} Bd6 {[%emt 0:08:30]} 12. Qxe6+ {[%emt 0:00:30]} Qe7 {[%emt 0:01:30]} 13. Qxe7+ {[%emt 0:00:30]} Bxe7 {[%emt 0:00:30]} 14. Nc4 {[%emt 0:00:30]} Bf6 {[%emt 0:04:30]} 15. f3 {[%emt 0:00:30]} b5 {[%emt 0:00:30]} 16. Nd2 {[%emt 0:00:30]} exf3 {[%emt 0:00:30]} 17. Nxf3 {[%emt 0:00:30]} O-O {[%emt 0:01:30]} 18. Kf2 {[%emt 0:00:30]} Nb6 {[%emt 0:02:30]} 19. Be5 {[%emt 0:00:30]} Bxe5 {[%emt 0:00:30]} 20. Nxe5 {[%emt 0:00:30]} c5 {[%emt 0:00:30]} 21. Rac1 {[%emt 0:00:30]} b4 {[%emt 0:01:30]} 22. cxb4 {[%emt 0:01:30]} cxd4 {[%emt 0:00:30]} 23. exd4 {[%emt 0:00:30]} Nd5 {[%emt 0:00:30]} 24. a3 {[%emt 0:00:30]} Nf4 {[%emt 0:02:30]} 25. g3 {[%emt 0:01:30]} Ne6 {[%emt 0:00:30]} 26. Nc6 {[%emt 0:00:30]} Rc7 {[%emt 0:00:30]} 27. d5 {[%emt 0:01:30]} Ng5 {[%emt 0:00:30]} 28. Rhd1 {[%emt 0:00:30]} Ne4+ {[%emt 0:00:30]} 29. Kf3 {[%emt 0:00:30]} Ng5+ {[%emt 0:00:30]} 30. Kg2 {[%emt 0:00:30]} f4 {[%emt 0:01:30]} 31. gxf4 {[%emt 0:00:30]} Rxf4 {[%emt 0:00:30]} 32. d6 {[%emt 0:00:30]} Rg4+ {[%emt 0:00:30]} 33. Kh1 {[%emt 0:02:30]} Nh3 {[%emt 0:00:30]} 34. Rf1 {[%emt 0:00:30]} 1-0

[Event "29th CRO-chT Junior 2020"]
[Site "Cakovec"]
[Date "2020.07.14"]
[Round "2.9"]
[White "Haidinger, Erik"]
[Black "Topalic, Fran"]
[Result "1-0"]
[ECO "D02"]
[WhiteElo "1767"]
[BlackElo "1741"]
[Annotator "NA RC"]
[PlyCount "61"]
[EventDate "2020.07.14"]
[EventType "team-tourn"]
[EventCountry "CRO"]
[SourceTitle "playchess.com"]
[Source "ChessBase"]
[SourceQuality "1"]
[TimeControl "5400+30"]

1. d4 {[%emt 0:00:30]} d5 {[%emt 0:00:30]} 2. Bf4 {[%emt 0:00:00]} Nf6 {[%emt 0:00:00]} 3. e3 {[%emt 0:00:00]} Bf5 {[%emt 0:01:00]} 4. Nf3 {[%emt 0:00:30]} e6 {[%emt 0:00:00]} 5. Ne5 {[%emt 0:00:30]} Nbd7 {[%emt 0:01:00]} 6. g4 {[%emt 0:00:30]} Bg6 {[%emt 0:00:30]} 7. h4 {[%emt 0:00:30]} Nxe5 {[%emt 0:00:30]} 8. dxe5 {[%emt 0:01:30]} Nd7 {[%emt 0:00:30]} 9. h5 {[%emt 0:00:00]} Bb4+ {[%emt 0:00:30]} 10. c3 {[%emt 0:02:00]} Bxb1 {[%emt 0:00:30]} 11. cxb4 {[%emt 0:00:30]} Be4 {[%emt 0:00:30]} 12. f3 {[%emt 0:00:30]} f6 {[%emt 0:01:30]} 13. fxe4 {[%emt 0:04:30]} fxe5 {[%emt 0:00:30]} 14. Bg3 {[%emt 0:01:30]} Qg5 {[%emt 0:00:30]} 15. Bf2 {[%emt 0:01:30]} Nf6 {[%emt 0:00:30]} 16. exd5 {[%emt 0:01:30]} O-O-O {[%emt 0:01:30]} 17. Qe2 {[%emt 0:01:30]} Qh6 {[%emt 0:01:30]} 18. Rg1 {[%emt 0:01:30]} g5 {[%emt 0:00:30]} 19. hxg6 {[%emt 0:01:30]} Qxg6 {[%emt 0:00:30]} 20. Bg2 {[%emt 0:08:30]} exd5 {[%emt 0:03:30]} 21. g5 {[%emt 0:00:30]} Ne4 {[%emt 0:01:30]} 22. Bxe4 {[%emt 0:01:30]} Qxe4 {[%emt 0:00:00]} 23. Qg4+ {[%emt 0:00:00]} Qxg4 {[%emt 0:01:00]} 24. Rxg4 {[%emt 0:00:00]} Rhg8 {[%emt 0:00:00]} 25. O-O-O {[%emt 0:00:30]} Rd6 {[%emt 0:00:00]} 26. Bg3 {[%emt 0:00:30]} h6 {[%emt 0:00:30]} 27. Bxe5 {[%emt 0:00:30]} Rc6+ {[%emt 0:00:00]} 28. Kb1 {[%emt 0:00:30]} hxg5 {[%emt 0:01:00]} 29. Rxd5 {[%emt 0:00:30]} Rcg6 {[%emt 0:00:30]} 30. Rc5 {[%emt 0:00:30]} c6 {[%emt 0:00:30]} 31. b5 {[%emt 0:00:30]} 1-0

[Event "29th CRO-chT Junior 2020"]
[Site "Cakovec"]
[Date "2020.07.14"]
[Round "2.10"]
[White "Matota, Dominik"]
[Black "Sundac, Ivano"]
[Result "1-0"]
[ECO "B92"]
[WhiteElo "1807"]
[BlackElo "1408"]
[Annotator "NA RC"]
[PlyCount "79"]
[EventDate "2020.07.14"]
[EventType "team-tourn"]
[EventCountry "CRO"]
[SourceTitle "playchess.com"]
[Source "ChessBase"]
[SourceQuality "1"]
[TimeControl "5400+30"]

{[%evp 10,73,23,15,18,14,20,10,25,-15,6,-19,0,-66,-68,-64,-4,0,0,0,0,-45,-56,-49,-53,-35,-33,-38,-38,-134,58,74,95,77,92,82,114,50,54,47,39,44,150,164,151,43,44,46,54,54,32767,44,37,46,32767,42,106,91,96,86,152,160,214,108,827,913]} 1. e4 {[%emt 0:00:30]} c5 {[%emt 0:00:30]} 2. Nf3 {[%emt 0:00:00]} d6 {[%emt 0:00:00]} 3. d4 {[%emt 0:00:00]} cxd4 {[%emt 0:00:00]} 4. Nxd4 {[%emt 0:00:00]} Nf6 {[%emt 0:00:30]} 5. Nc3 {[%emt 0:00:00]} a6 {[%emt 0:00:00]} 6. Be2 {[%emt 0:00:30]} e5 {[%emt 0:00:00]} 7. Nb3 {[%emt 0:00:00]} Be6 {[%emt 0:00:30]} 8. Be3 {[%emt 0:01:00]} Be7 {[%emt 0:00:30]} 9. f3 {[%emt 0:00:30]} O-O {[%emt 0:01:30]} 10. Qd2 {[%emt 0:00:30]} Nbd7 {[%emt 0:01:30]} 11. O-O-O {[%emt 0:01:30]} ({White should play} 11. Nd5 $11) 11... b5 {[%emt 0:00:30]} 12. h4 {[%emt 0:00:00] B92: Sicilian Najdorf: 6 Be2.} Nh5 {[%emt 0:04:30]} ({Better is} 12... b4 $17 13. Nd5 Bxd5 14. exd5 a5) 13. g4 {[%emt 0:09:00]} Ng3 {[%emt 0:00:00]} 14. Rh2 {[%emt 0:00:30]} Nxe2+ {[%emt 0:00:00]} 15. Nxe2 {[%emt 0:00:30]} a5 {[%emt 0:01:30]} 16. Kb1 {[%emt 0:04:30]} a4 {[%emt 0:02:30]} 17. Nbc1 {[%emt 0:00:00] [#]} Nb6 $146 {[%emt 0:02:30]} ({Predecessor:} 17... b4 18. g5 b3 19. cxb3 axb3 20. a3 d5 21. exd5 Bf5+ 22. Ka1 Bxa3 23. bxa3 Rxa3+ 24. Kb2 Qa8 25. Qb4 Ra2+ 26. Nxa2 Qxa2+ 27. Kc1 Qc2# {0-1 (27) Martins,R (1800)-Da Silva,J (1734) Curitiba 2015}) 18. Bxb6 {[%emt 0:02:00]} Qxb6 {[%emt 0:00:00]} 19. Nd3 {[%emt 0:00:30] [#]} (19. Ng3 $11 {remains equal.}) 19... f6 $2 {[%emt 0:06:00]} (19... d5 $1 $17 20. Nxe5 Rad8 21. exd5 Bxd5) 20. Nb4 $1 {[%emt 0:06:30]} Rfd8 {[%emt 0:00:30]} 21. Nd5 {[%emt 0:00:30]} Qb7 {[%emt 0:01:30]} 22. a3 {[%emt 0:08:30]} Rab8 {[%emt 0:02:30]} 23. Qb4 {[%emt 0:03:30]} (23. Nec3 $16) 23... Bxd5 {[%emt 0:03:30]} 24. Rxd5 {[%emt 0:00:30]} Rdc8 {[%emt 0:01:30]} 25. Qd2 {[%emt 0:05:30]} Rc4 {[%emt 0:05:30]} (25... b4 $14 26. Qxb4 Qxb4 27. axb4 Rxb4) 26. c3 {[%emt 0:00:30]} Rc5 {[%emt 0:00:30]} 27. Ng3 {[%emt 0:03:30]} (27. Rd3 $16) 27... Rxd5 {[%emt 0:01:30]} 28. exd5 {[%emt 0:02:30]} Rc8 {[%emt 0:00:30]} 29. Rh1 {[%emt 0:00:30]} Bf8 {[%emt 0:03:30]} 30. Qd3 {[%emt 0:09:30]} Rc7 {[%emt 0:01:30]} 31. Ne4 {[%emt 0:01:30]} Be7 {[%emt 0:01:30]} 32. h5 {[%emt 0:04:30]} h6 {[%emt 0:00:30]} ({Black should try} 32... Rc4 $14) 33. Rd1 {[%emt 0:02:30]} Bf8 {[%emt 0:00:30]} 34. Ng3 {[%emt 0:01:30]} Rc5 {[%emt 0:00:30] [#]} ({Better is} 34... Rc4) 35. Qf5 $1 {[%emt 0:01:30]} Qc8 {[%emt 0:01:30] [#]} 36. Qg6 {[%emt 0:05:30]} (36. Qe6+ $1 $18 Kh8 37. Ne4) 36... Qb7 $2 {[%emt 0:00:30] [#]} (36... Kh8 $16) 37. Ne4 $18 {[%emt 0:00:30]} Qe7 {[%emt 0:04:30]} 38. Nxc5 {[%emt 0:01:30]} dxc5 {[%emt 0:00:30]} 39. d6 {[%emt 0:00:30]} Qd8 {[%emt 0:00:30]} 40. d7 {[%emt 0:00:30]} 1-0

[Event "29th CRO-chT Junior 2020"]
[Site "Cakovec"]
[Date "2020.07.14"]
[Round "2.11"]
[White "Tomljanovic, Ivano"]
[Black "Borzan, Matej"]
[Result "0-1"]
[ECO "B07"]
[WhiteElo "1393"]
[BlackElo "1746"]
[Annotator "NA RC"]
[PlyCount "90"]
[EventDate "2020.07.14"]
[EventType "team-tourn"]
[EventCountry "CRO"]
[SourceTitle "playchess.com"]
[Source "ChessBase"]
[SourceQuality "1"]
[TimeControl "5400+30"]

1. e4 {[%emt 0:00:30]} d6 {[%emt 0:00:30]} 2. Nf3 {[%emt 0:00:30]} Nf6 {[%emt 0:00:00]} 3. Nc3 {[%emt 0:00:00]} g6 {[%emt 0:00:00]} 4. Bc4 {[%emt 0:00:00]} Bg7 {[%emt 0:00:30]} 5. d3 {[%emt 0:00:30]} O-O {[%emt 0:00:30]} 6. O-O {[%emt 0:00:30]} Nbd7 {[%emt 0:00:00]} 7. Be3 {[%emt 0:05:30]} Ng4 {[%emt 0:00:00]} 8. h3 {[%emt 0:01:30]} Nxe3 {[%emt 0:00:30]} 9. fxe3 {[%emt 0:00:00]} c6 {[%emt 0:01:30]} 10. d4 {[%emt 0:01:00]} e5 {[%emt 0:00:30]} 11. Qe2 {[%emt 0:03:30]} Qb6 {[%emt 0:01:30]} 12. Ng5 {[%emt 0:07:30]} Nf6 {[%emt 0:03:30]} 13. dxe5 {[%emt 0:03:30]} dxe5 {[%emt 0:00:30]} 14. Bb3 {[%emt 0:01:30]} Bd7 {[%emt 0:05:30]} 15. Rad1 {[%emt 0:00:30]} Rad8 {[%emt 0:01:30]} 16. Rfe1 {[%emt 0:02:30]} h6 {[%emt 0:06:30]} 17. Nf3 {[%emt 0:02:30]} Rfe8 {[%emt 0:01:30]} 18. Rd2 {[%emt 0:02:30]} Be6 {[%emt 0:02:30]} 19. Red1 {[%emt 0:03:30]} Bxb3 {[%emt 0:02:30]} 20. axb3 {[%emt 0:00:30]} h5 {[%emt 0:12:30]} 21. Rxd8 {[%emt 0:01:30]} Rxd8 {[%emt 0:00:30]} 22. Rxd8+ {[%emt 0:00:30]} Qxd8 {[%emt 0:00:30]} 23. Nxe5 {[%emt 0:00:30]} Qe7 {[%emt 0:00:30]} 24. Nd3 {[%emt 0:02:30]} Nxe4 {[%emt 0:00:30]} 25. Nxe4 {[%emt 0:00:30]} Qxe4 {[%emt 0:00:30]} 26. Qf3 {[%emt 0:01:30]} Qe7 {[%emt 0:00:30]} 27. b4 {[%emt 0:01:30]} f5 {[%emt 0:09:30]} 28. c3 {[%emt 0:01:30]} Qd6 {[%emt 0:01:30]} 29. Nf4 {[%emt 0:02:30]} Kh7 {[%emt 0:08:30]} 30. h4 {[%emt 0:04:30]} Bh6 {[%emt 0:07:30]} 31. Qf2 {[%emt 0:01:30]} Kg7 {[%emt 0:08:30]} 32. Qg3 {[%emt 0:05:30]} Kf7 {[%emt 0:01:30]} 33. Qf2 {[%emt 0:02:30]} Bxf4 {[%emt 0:00:00]} 34. exf4 {[%emt 0:00:30]} a6 {[%emt 0:01:00]} 35. g3 {[%emt 0:00:30]} Qd3 {[%emt 0:01:30]} 36. Kg2 {[%emt 0:00:30]} Ke6 {[%emt 0:00:30]} 37. Kh3 {[%emt 0:01:30]} Qe4 {[%emt 0:00:30]} 38. Kh2 {[%emt 0:00:30]} Kd5 {[%emt 0:01:30]} 39. Qc5+ {[%emt 0:01:30]} Ke6 {[%emt 0:00:30]} 40. Qf2 {[%emt 0:00:30]} Qd3 {[%emt 0:03:40]} 41. Kg2 {[%emt 0:00:30]} Qc4 {[%emt 0:01:11]} 42. Qd2 {[%emt 0:01:30]} Qd5+ {[%emt 0:00:21]} 43. Qxd5+ {[%emt 0:02:30]} Kxd5 {[%emt 0:00:30]} 44. Kf2 {[%emt 0:00:30]} Kc4 {[%emt 0:00:13]} 45. g4 {[%emt 0:00:30]} hxg4 {[%emt 0:00:14]} 0-1

[Event "29th CRO-chT Junior 2020"]
[Site "Cakovec"]
[Date "2020.07.14"]
[Round "2.12"]
[White "Dankos, Mislav"]
[Black "Kresic, Vid"]
[Result "1/2-1/2"]
[ECO "D38"]
[WhiteElo "1274"]
[BlackElo "1216"]
[Annotator "NA RC"]
[PlyCount "59"]
[EventDate "2020.07.14"]
[EventType "team-tourn"]
[EventCountry "CRO"]
[SourceTitle "playchess.com"]
[Source "ChessBase"]
[SourceQuality "1"]
[TimeControl "5400+30"]

1. d4 {[%emt 0:00:30]} d5 {[%emt 0:00:30]} 2. c4 {[%emt 0:00:00]} e6 {[%emt 0:00:30]} 3. Nc3 {[%emt 0:00:00]} Bb4 {[%emt 0:00:30]} 4. Nf3 {[%emt 0:00:30]} Nf6 {[%emt 0:00:00]} 5. Bg5 {[%emt 0:00:30]} h6 {[%emt 0:00:00]} 6. Bh4 {[%emt 0:00:30]} Nc6 {[%emt 0:01:30]} 7. e3 {[%emt 0:00:30]} g5 {[%emt 0:01:30]} 8. Bg3 {[%emt 0:00:30]} Ne4 {[%emt 0:00:30]} 9. Qc2 {[%emt 0:01:30]} f5 {[%emt 0:01:30]} 10. Be5 {[%emt 0:02:30]} Rg8 {[%emt 0:01:30]} 11. cxd5 {[%emt 0:03:30]} exd5 {[%emt 0:01:30]} 12. Bb5 {[%emt 0:00:30]} Bd7 {[%emt 0:01:30]} 13. a3 {[%emt 0:01:30]} Bxc3+ {[%emt 0:00:30]} 14. bxc3 {[%emt 0:00:00]} g4 {[%emt 0:00:30]} 15. Bxc6 {[%emt 0:00:00]} Bxc6 {[%emt 0:00:00]} 16. Nd2 {[%emt 0:01:30]} Qd7 {[%emt 0:01:00]} 17. h4 {[%emt 0:01:30]} g3 {[%emt 0:02:30]} 18. Nxe4 {[%emt 0:00:30]} fxe4 {[%emt 0:00:30]} 19. Bxg3 {[%emt 0:00:30]} Bb5 {[%emt 0:00:30]} 20. a4 {[%emt 0:02:30]} Bd3 {[%emt 0:00:30]} 21. Qb3 {[%emt 0:00:30]} c6 {[%emt 0:00:30]} 22. a5 {[%emt 0:01:30]} Rg6 {[%emt 0:06:30]} 23. Qb4 {[%emt 0:02:30]} Bc4 {[%emt 0:01:30]} 24. Rb1 {[%emt 0:00:30]} Rb8 {[%emt 0:00:30]} 25. Bxb8 {[%emt 0:00:30]} Qg4 {[%emt 0:00:30]} 26. Qb2 {[%emt 0:02:30]} Qxg2 {[%emt 0:00:30]} 27. Rh2 {[%emt 0:00:30]} Qf3 {[%emt 0:00:30]} 28. Bg3 {[%emt 0:04:30]} Rxg3 {[%emt 0:04:30]} 29. fxg3 {[%emt 0:01:30]} Qf1+ {[%emt 0:10:30]} 30. Kd2 {[%emt 0:00:30]} 1/2-1/2

[Event "29th CRO-chT Junior 2020"]
[Site "Cakovec"]
[Date "2020.07.15"]
[Round "3.2"]
[White "Dumancic, Simun"]
[Black "Juric, Ester"]
[Result "1-0"]
[ECO "B53"]
[WhiteElo "1896"]
[BlackElo "1663"]
[Annotator "NA RC"]
[PlyCount "81"]
[EventDate "2020.07.14"]
[EventType "team-tourn"]
[EventCountry "CRO"]
[SourceTitle "playchess.com"]
[Source "ChessBase"]
[SourceQuality "1"]
[TimeControl "5400+30"]

{[%evp 14,81,35,22,28,7,3,0,30,0,29,0,9,0,-27,-24,8,18,20,0,10,-39,35,-31,0,-30,150,-38,167,-145,-35,-64,-62,-70,39,54,38,41,36,-456,68,75,60,51,66,55,73,89,502,500,528,541,32767,32767,32767,32767,32767,687,629,631,541,627,1008,934,2143,5695,5595,29979,2889,29982]} 1. e4 {[%emt 0:00:30]} c5 {[%emt 0:00:30]} 2. Nf3 {[%emt 0:00:00]} d6 {[%emt 0:00:00]} 3. d4 {[%emt 0:00:00]} cxd4 {[%emt 0:00:00]} 4. Qxd4 {[%emt 0:00:30]} Nc6 {[%emt 0:00:30]} 5. Bb5 {[%emt 0:00:00]} Bd7 {[%emt 0:00:30]} 6. Bxc6 {[%emt 0:00:00]} Bxc6 {[%emt 0:00:30]} 7. Nc3 {[%emt 0:00:00]} e5 {[%emt 0:10:30]} 8. Qd3 {[%emt 0:02:00]} h6 {[%emt 0:01:30]} 9. Be3 {[%emt 0:05:30]} Nf6 {[%emt 0:00:30]} 10. O-O-O {[%emt 0:04:30]} Be7 {[%emt 0:00:30]} 11. h3 {[%emt 0:00:30]} (11. Nh4 $5 {[%cal Rh4f5]}) 11... a6 {[%emt 0:04:30] B53: Sicilian: 2...d6: Lines with Qxd4.} 12. Nh4 {[%emt 0:16:30]} g6 {[%emt 0:17:30] [#]} 13. Rhe1 $146 {[%emt 0:11:30]} ({Predecessor:} 13. f4 exf4 14. Bd4 O-O 15. Nf3 Nd7 16. Qd2 Kh7 17. Qxf4 f5 18. Qe3 f4 19. Qf2 {0-1 (70) Prakapuk,V (1974)-Uzlavataya,A (1979) Minsk 2015}) 13... Qc7 {[%emt 0:07:30]} 14. f4 {[%emt 0:04:30]} Rd8 {[%emt 0:19:30]} (14... Nh5 $15 15. Nf3 exf4) 15. Nf3 {[%emt 0:09:30]} b5 {[%emt 0:03:30]} 16. a3 {[%emt 0:03:30]} O-O {[%emt 0:04:30]} 17. g4 {[%emt 0:11:30]} Rfe8 {[%emt 0:07:20]} 18. Kb1 {[%emt 0:09:05]} (18. Bd2 $11) 18... Bf8 {[%emt 0:01:19]} 19. Bc1 {[%emt 0:02:16]} Be7 $2 {[%emt 0:04:59] [#]} ({Black should play} 19... exf4 $11 20. Bxf4 Qb7) 20. Qe2 $2 {[%emt 0:03:36]} (20. g5 $1 $16 {[%cal Rg5f6]} hxg5 21. Nxg5 (21. fxg5 Nd7 $11)) 20... Bf8 $2 {[%emt 0:01:10]} (20... exf4 $11 {and Black stays safe.} 21. Bxf4 Bf8) 21. Qf2 $2 {[%emt 0:05:25]} ({Better is} 21. g5 $18) 21... a5 {[%emt 0:04:10]} (21... exf4 $17 22. Nd4 g5 23. Bxf4 gxf4 24. Qxf4 Nh7) 22. Nd5 {[%emt 0:01:45]} Bxd5 $1 {[%emt 0:07:04]} 23. exd5 {[%emt 0:00:33]} Qc5 {[%emt 0:00:30]} ({Black should play} 23... exf4 $15 24. Bxf4 b4 25. Rxe8 Rxe8) 24. Be3 {[%emt 0:01:52]} Qc4 {[%emt 0:01:35]} 25. b3 {[%emt 0:00:52]} Qc8 $1 {[%emt 0:00:34]} 26. fxe5 $2 {[%emt 0:00:54]} (26. Bb6 $14 {was forced to keep a grip.} exf4 27. Bxd8 (27. Bxa5 Rxe1 28. Bxe1 Re8 $15) 27... Qxd8 28. Rxe8 Qxe8 29. Qe1) 26... dxe5 $2 {[%emt 0:00:01]} (26... Ne4 $19 27. Qh2 Nc3+ 28. Kb2 dxe5) 27. Nxe5 {[%emt 0:00:13]} Rxe5 {[%emt 0:02:13]} 28. Qxf6 {[%emt 0:00:05]} Bg7 {[%emt 0:00:10]} 29. Qc6 $1 {[%emt 0:01:12]} Qxc6 {[%emt 0:00:50] Remove Defender} 30. dxc6 {[%emt 0:00:01]} Rxd1+ $4 {[%emt 0:00:02]} (30... Rc8 $16) 31. Rxd1 {[%emt 0:00:07]} Rxe3 {[%emt 0:00:05]} 32. c7 {[%emt 0:00:02]} Rc3 {[%emt 0:00:44]} 33. Rd8+ {[%emt 0:00:05]} Kh7 {[%emt 0:00:05]} 34. c8=Q {[%emt 0:00:30]} Rxc8 {[%emt 0:00:00]} 35. Rxc8 {[%emt 0:00:00]} b4 {[%emt 0:00:21]} 36. Ra8 {[%emt 0:00:22]} bxa3 {[%emt 0:00:09]} 37. Rxa5 {[%emt 0:00:07]} Bb2 {[%emt 0:00:02]} 38. c4 {[%emt 0:00:11]} g5 {[%emt 0:00:19]} 39. c5 {[%emt 0:00:09]} Bd4 {[%emt 0:00:03]} 40. c6 {[%emt 0:00:08]} Bb6 {[%emt 0:00:06]} 41. Rb5 {[%emt 0:00:09]} 1-0

[Event "29th CRO-chT Junior 2020"]
[Site "Cakovec"]
[Date "2020.07.15"]
[Round "3.3"]
[White "Mandaric, Fran"]
[Black "Sagovac, Kristijan"]
[Result "0-1"]
[ECO "B50"]
[WhiteElo "1671"]
[BlackElo "1839"]
[Annotator "NA RC"]
[PlyCount "56"]
[EventDate "2020.07.14"]
[EventType "team-tourn"]
[EventCountry "CRO"]
[SourceTitle "playchess.com"]
[Source "ChessBase"]
[SourceQuality "1"]
[TimeControl "5400+30"]

{[%evp 12,56,0,-27,-12,-25,-13,-29,-10,-26,-14,-25,-22,-34,-56,-219,-223,-227,-221,-555,-608,-889,-926,-864,-931,-1230,-1361,-1491,-1763,-1968,32767,32767,32767,32767,32767,32767,-29991,-29990,-29992,-29992,-29993,-29993,-29994,-29995,-29996,-29996,-29996]} 1. e4 {[%emt 0:00:30]} c5 {[%emt 0:00:30]} 2. Nf3 {[%emt 0:00:00]} Nc6 {[%emt 0:00:00]} 3. b3 {[%emt 0:00:00]} e5 {[%emt 0:02:00]} 4. Bb2 {[%emt 0:00:30]} d6 {[%emt 0:00:30]} 5. Nc3 {[%emt 0:00:30]} Nf6 {[%emt 0:00:30]} 6. Bb5 {[%emt 0:04:30] B50: Sicilian: 2...d6, Miscellaneous.} Bd7 {[%emt 0:00:30]} 7. Qe2 {[%emt 0:00:30]} a6 {[%emt 0:00:30]} 8. Bxc6 {[%emt 0:02:30]} Bxc6 {[%emt 0:00:30]} 9. d3 {[%emt 0:01:30]} Be7 {[%emt 0:01:30]} 10. O-O {[%emt 0:08:30]} O-O {[%emt 0:01:30] [#]} 11. Rfe1 $146 {[%emt 0:03:30]} ({Predecessor:} 11. Nd2 Re8 12. f4 exf4 13. Rxf4 d5 14. Raf1 d4 15. Nd1 Bd6 16. Rxf6 gxf6 17. Ne3 dxe3 {0-1 (49) Kayan,V (1814)-Beradze,I (2467) Cubuk 2017}) 11... b5 {[%emt 0:05:30]} 12. Nd1 {[%emt 0:12:30]} Nh5 {[%emt 0:05:30]} 13. Bxe5 $2 {[%emt 0:00:00]} (13. g3 $15) 13... dxe5 {[%emt 0:00:30]} 14. Nxe5 {[%emt 0:00:00]} Be8 {[%emt 0:01:30]} 15. g4 $2 {[%emt 0:10:30]} (15. Qxh5 f6 16. Qe2 fxe5 17. Ne3) 15... Bf6 {[%emt 0:08:30]} 16. Nxf7 {[%emt 0:09:30]} Bxf7 {[%emt 0:02:30]} 17. e5 {[%emt 0:03:30]} Re8 {[%emt 0:01:30]} 18. d4 {[%emt 0:05:30]} cxd4 {[%emt 0:13:30]} 19. gxh5 {[%emt 0:10:30]} Rxe5 {[%emt 0:00:00]} 20. Qd2 {[%emt 0:01:30]} Bg5 {[%emt 0:04:00]} 21. f4 {[%emt 0:00:30]} Bxf4 {[%emt 0:00:30]} 22. Qf2 {[%emt 0:00:30]} Rxe1+ {[%emt 0:00:30]} 23. Qxe1 {[%emt 0:00:30]} Qg5+ {[%emt 0:00:30]} 24. Kf1 {[%emt 0:01:30]} Bd5 {[%emt 0:00:30]} 25. Qf2 {[%emt 0:00:30]} Rf8 {[%emt 0:01:30]} 26. h4 {[%emt 0:00:00]} Qg4 {[%emt 0:00:30]} 27. Qe2 {[%emt 0:02:00]} Be3+ {[%emt 0:01:30]} 28. Nf2 {[%emt 0:00:30]} Rxf2+ {[%emt 0:00:30]} 0-1